[Event "NJSK 2018 Jeugd A"]
[Site "Assen, Netherlands"]
[Date "2018.05.05"]
[Round "7.9"]
[White "Van Dael, Siem"]
[Black "Gijsen, William"]
[Result "1-0"]
[TimeControl "40/90m+30m+30sec/move"]
[WhiteElo "2268"]
[BlackElo "1825"]

1. e4 {[%clk 00:00:00]} {[%emt 16:34:35]} c5 {[%clk 01:30:53]} {[%emt
00:01:08]} 2. Nf3 {[%clk 01:30:55]} {[%emt 00:00:09]} Nc6 {[%clk 01:31:15]}
{[%emt 00:00:11]} 3. d4 {[%clk 01:31:21]} {[%emt 00:00:05]} cxd4 {[%clk
01:31:41]} {[%emt 00:00:07]} 4. Nxd4 {[%clk 01:31:47]} {[%emt 00:00:03]} e5
{[%clk 01:32:01]} {[%emt 00:00:14]} 5. Nb5 {[%clk 01:32:13]} {[%emt 00:00:07]}
d6 {[%clk 01:32:23]} {[%emt 00:00:08]} 6. N1c3 {[%clk 01:32:36]} {[%emt
00:00:05]} a6 {[%clk 01:31:46]} {[%emt 00:01:22]} 7. Na3 {[%clk 01:33:01]}
{[%emt 00:00:05]} Be7 {[%clk 01:32:02]} {[%emt 00:00:11]} 8. Nc4 {[%clk
01:32:31]} {[%emt 00:01:18]} b5 {[%clk 01:29:39]} {[%emt 00:02:36]} 9. Ne3
{[%clk 01:32:54]} {[%emt 00:00:05]} Nf6 {[%clk 01:30:03]} {[%emt 00:00:04]} 10.
f3 {[%clk 01:32:59]} {[%emt 00:00:17]} Be6 {[%clk 01:28:16]} {[%emt 00:01:08]}
11. Ncd5 {[%clk 01:29:40]} {[%emt 00:03:48]} O-O {[%clk 01:24:54]} {[%emt
00:03:53]} 12. c3 {[%clk 01:29:43]} {[%emt 00:00:26]} Re8 {[%clk 01:21:17]}
{[%emt 00:04:08]} 13. a4 {[%clk 01:28:30]} {[%emt 00:01:43]} b4 {[%clk
01:13:41]} {[%emt 00:08:06]} 14. Bc4 {[%clk 01:27:31]} {[%emt 00:01:29]} bxc3
{[%clk 01:13:11]} {[%emt 00:00:59]} 15. bxc3 {[%emt 00:00:16]} Na5 {[%clk
01:10:25]} {[%emt 00:03:14]} 16. Ba2 {[%clk 01:27:26]} {[%emt 00:00:51]} Rc8
{[%clk 01:10:19]} {[%emt 00:00:36]} 17. Qd3 {[%clk 01:22:06]} {[%emt 00:05:50]}
Nxd5 {[%clk 01:06:06]} {[%emt 00:04:43]} 18. Bxd5 {[%clk 01:18:41]} {[%emt
00:03:55]} Qc7 {[%clk 01:03:34]} {[%emt 00:03:02]} 19. Bd2 {[%clk 01:17:05]}
{[%emt 00:02:06]} Bg5 {[%clk 01:03:22]} {[%emt 00:01:13]} 20. O-O {[%clk
01:12:46]} {[%emt 00:04:18]} Nb3 {[%clk 01:00:49]} {[%emt 00:03:03]} 21. Bxb3
{[%clk 01:06:24]} {[%emt 00:06:52]} Bxb3 {[%clk 01:01:08]} {[%emt 00:00:12]} 22.
Rfb1 {[%clk 01:04:36]} {[%emt 00:02:18]} Be6 {[%clk 00:54:45]} {[%emt
00:06:53]} 23. Qxa6 {[%clk 01:03:17]} {[%emt 00:01:50]} Qc5 {[%clk 00:54:36]}
{[%emt 00:00:39]} 24. Qe2 {[%clk 01:03:30]} {[%emt 00:00:17]} Bxe3+ {[%clk
00:52:32]} {[%emt 00:02:34]} 25. Bxe3 {[%clk 01:03:31]} {[%emt 00:00:28]} Qxc3
{[%clk 00:52:50]} {[%emt 00:00:12]} 26. a5 {[%clk 01:02:44]} {[%emt 00:01:17]}
Ra8 {[%clk 00:52:22]} {[%emt 00:00:58]} 27. Rc1 {[%clk 01:02:13]} {[%emt
00:01:02]} Qb4 {[%clk 00:49:49]} {[%emt 00:03:02]} 28. a6 {[%clk 01:01:38]}
{[%emt 00:01:05]} d5 {[%clk 00:47:50]} {[%emt 00:02:30]} 29. Bc5 {[%clk
01:01:03]} {[%emt 00:01:04]} Qb3 {[%clk 00:47:13]} {[%emt 00:01:08]} 30. Ra3
{[%clk 01:01:09]} {[%emt 00:00:24]} Qb8 {[%clk 00:47:12]} {[%emt 00:00:32]} 31.
Ra5 {[%clk 00:57:28]} {[%emt 00:04:10]} d4 {[%clk 00:43:09]} {[%emt 00:04:32]}
32. Rb5 {[%clk 00:56:56]} {[%emt 00:01:01]} Qc8 {[%clk 00:41:35]} {[%emt
00:02:07]} 33. Rb6 {[%clk 00:52:28]} {[%emt 00:04:56]} Qd7 {[%clk 00:35:29]}
{[%emt 00:06:35]} 34. Rd6 {[%clk 00:45:33]} {[%emt 00:07:25]} Qa4 {[%clk
00:34:37]} {[%emt 00:01:23]} 35. f4 {[%clk 00:44:40]} {[%emt 00:01:23]} f6
{[%clk 00:31:23]} {[%emt 00:03:54]} 36. a7 {[%clk 00:40:05]} {[%emt 00:04:55]}
Bf7 {[%clk 00:29:33]} {[%emt 00:02:20]} 37. Ra6 {[%clk 00:39:07]} {[%emt
00:01:30]} Qb3 {[%clk 00:26:02]} {[%emt 00:03:59]} 38. Ra3 {[%clk 00:39:00]}
{[%emt 00:00:37]} Qb7 {[%clk 00:25:55]} {[%emt 00:00:38]} 39. f5 {[%clk
00:38:39]} {[%emt 00:00:50]} Red8 {[%clk 00:23:15]} {[%emt 00:03:12]} 40. Qd3
{[%clk 00:37:48]} {[%emt 00:01:20]} Re8 {[%clk 00:17:53]} {[%emt 00:05:52]} 41.
h3 {[%clk 00:37:23]} {[%emt 00:00:55]} Kh8 {[%clk 00:17:30]} {[%emt 00:00:52]}
42. Kh2 {[%clk 00:37:45]} {[%emt 00:00:08]} Rg8 {[%clk 00:17:15]} {[%emt
00:00:44]} 43. Rb1 {[%clk 00:37:38]} {[%emt 00:00:38]} Qc6 {[%clk 00:17:15]}
{[%emt 00:00:30]} 44. Ra5 {[%clk 00:37:49]} {[%emt 00:00:18]} Qc7 {[%clk
00:16:38]} {[%emt 00:01:08]} 45. Qa3 {[%clk 00:36:06]} {[%emt 00:02:14]} Rgc8
{[%clk 00:16:50]} {[%emt 00:00:19]} 46. Bd6 {[%clk 00:34:32]} {[%emt 00:02:02]}
Qc3 {[%clk 00:11:12]} {[%emt 00:06:08]} 47. Rb8 {[%clk 00:34:38]} {[%emt
00:00:24]} Rg8 {[%clk 00:09:18]} {[%emt 00:02:23]} 48. Qxc3 {[%clk 00:34:31]}
{[%emt 00:00:37]} dxc3 {[%clk 00:09:46]} {[%emt 00:00:02]} 49. Rxa8 {[%clk
00:34:52]} {[%emt 00:00:09]} Rxa8 {[%clk 00:09:36]} {[%emt 00:00:40]} 50. Bb8
{[%clk 00:35:18]} {[%emt 00:00:04]} 1-0